fUSD/lending_fUSD_20250414
["ID","MTS","AMOUNT","RATE_DAILY","PERIOD"]
[358030229,1744656640013,-643.58,0.00017999,2]
[358030230,1744656640022,-643.58,0.00017999,2]
[358030231,1744656640031,-643.58,0.00017999,2]
[358030232,1744656640041,-643.58,0.00017999,2]
[358030233,1744656640050,-643.58,0.00017999,2]
[358030234,1744656640059,-643.58,0.00017999,2]
[358030235,1744656640069,-643.58,0.00017999,2]
[358030236,1744656640080,-643.58,0.00017999,2]
[358030237,1744656640089,-643.58,0.00017999,2]
[358030238,1744656640098,-643.58,0.00017999,2]
[358030239,1744656640107,-643.58,0.00017999,2]
[358030240,1744656640116,-643.67,0.00017999,2]
[358030241,1744656640125,-1328.11,0.00017999,2]
[358030242,1744656640134,-500.0,0.00017999,2]
[358030243,1744656640143,-1328.11,0.00017999,2]
[358030245,1744656640152,-500.0,0.00017999,2]
[358030246,1744656640161,-1328.11,0.00017999,2]
[358030248,1744656640171,-500.0,0.00017999,2]
[358030249,1744656640181,-1328.11,0.00017999,2]
[358030251,1744656640196,-500.0,0.00017999,2]
[358030252,1744656640206,-1328.11,0.00017999,2]
[358030255,1744656640220,-500.0,0.00017999,2]
[358030257,1744656640230,-1328.11,0.00017999,2]
[358030258,1744656640242,-500.0,0.00017999,2]
[358030260,1744656640251,-1328.11,0.00017999,2]
[358030262,1744656640261,-500.0,0.00017999,2]
[358030264,1744656640271,-500.0,0.00017999,2]
[358030266,1744656640281,-1328.11,0.00017999,2]
[358030268,1744656640291,-500.0,0.00017999,2]
[358030270,1744656640302,-500.0,0.00017999,2]
[358030273,1744656640312,-1328.11,0.00017999,2]
[358030275,1744656640322,-299.86,0.00017999,2]
[358030277,1744656640332,-500.0,0.00017999,2]
[358030279,1744656640342,-1328.11,0.00017999,2]
[358030281,1744656640352,-500.0,0.00017999,2]
[358030283,1744656640362,-1328.11,0.00017999,2]
[358030285,1744656640372,-500.0,0.00017999,2]
[358030287,1744656640382,-1328.11,0.00017999,2]
[358030289,1744656640392,-500.0,0.00017999,2]
[358030291,1744656640402,-1328.11,0.00017999,2]
[358030293,1744656640412,-500.0,0.00017999,2]
[358030295,1744656640422,-1328.11,0.00017999,2]
[358030297,1744656640431,-500.0,0.00017999,2]
[358030299,1744656640440,-1328.11,0.00017999,2]
[358030301,1744656640450,-500.0,0.00017999,2]
[358030303,1744656640459,-1328.11,0.00017999,2]
[358030305,1744656640469,-500.0,0.00017999,2]
[358030307,1744656640478,-1328.11,0.00017999,2]
[358030309,1744656640489,-500.0,0.00017999,2]
[358030310,1744656640498,-1328.11,0.00017999,2]
[358030312,1744656640508,-500.0,0.00017999,2]
[358030315,1744656640518,-1328.11,0.00017999,2]
[358030317,1744656640528,-500.0,0.00017999,2]
[358030319,1744656640537,-1328.11,0.00017999,2]
[358030321,1744656640547,-365.08869704,0.00017999,2]
[358030322,1744656640556,-1328.11,0.00017999,2]
[358030325,1744656640566,-1328.14611109,0.00017999,2]
[358030326,1744656640575,-660.08,0.00017999,2]
[358030328,1744656640585,-660.08,0.00017999,2]
[358030330,1744656640595,-660.08,0.00017999,2]
[358030332,1744656640605,-660.08,0.00017999,2]
[358030335,1744656640616,-660.08,0.00017999,2]
[358030337,1744656640625,-660.08,0.00017999,2]
[358030339,1744656640635,-660.08,0.00017999,2]
[358030341,1744656640645,-660.08,0.00017999,2]
[358030343,1744656640655,-500.0,0.00017999,2]
[358030345,1744656640664,-660.08,0.00017999,2]
[358030347,1744656640674,-660.08,0.00017999,2]
[358030349,1744656640683,-660.08,0.00017999,2]
[358030351,1744656640693,-660.08,0.00017999,2]
[358030353,1744656640702,-660.08,0.00017999,2]
[358030355,1744656640715,-660.08,0.00017999,2]
[358030357,1744656640725,-660.08,0.00017999,2]
[358030359,1744656640735,-660.08,0.00017999,2]
[358030361,1744656640745,-660.08,0.00017999,2]
[358030363,1744656640755,-660.08,0.00017999,2]
[358030365,1744656640765,-237.69,0.00017999,2]
[358030367,1744656640775,-660.08,0.00017999,2]
[358030369,1744656640785,-660.08,0.00017999,2]
[358030371,1744656640794,-660.08,0.00017999,2]
[358030373,1744656640804,-660.26756098,0.00017999,2]
[358030375,1744656640815,-500.0,0.00017999,2]
[358030377,1744656640824,-500.0,0.00017999,2]
[358030379,1744656640834,-500.0,0.00017999,2]
[358030381,1744656640843,-500.0,0.00017999,2]
[358030383,1744656640853,-500.0,0.00017999,2]
[358030385,1744656640862,-803.16,0.00017999,2]
[358030387,1744656640872,-803.16,0.00017999,2]
[358030389,1744656640882,-803.16,0.00017999,2]
[358030391,1744656640893,-803.16,0.00017999,2]
[358030393,1744656640902,-803.16,0.00017999,2]
[358030395,1744656640912,-803.16,0.00017999,2]
[358030397,1744656640921,-803.16,0.00017999,2]
[358030399,1744656640931,-803.16,0.00017999,2]
[358030401,1744656640941,-803.16,0.00017999,2]
[358030403,1744656640951,-803.16,0.00017999,2]
[358030405,1744656640960,-803.16,0.00017999,2]
[358030407,1744656640970,-803.16,0.00017999,2]
[358030409,1744656640979,-803.16,0.00017999,2]
[358030411,1744656640988,-803.16,0.00017999,2]
[358030412,1744656641002,-803.16,0.00017999,2]
[358030414,1744656641013,-803.16,0.00017999,2]
[358030416,1744656641024,-803.16,0.00017999,2]
[358030418,1744656641034,-803.16,0.00017999,2]
[358030420,1744656641044,-803.16,0.00017999,2]
[358030422,1744656641054,-803.16,0.00017999,2]
[358030424,1744656641063,-803.16,0.00017999,2]
[358030426,1744656641074,-803.24550953,0.00017999,2]
[358030428,1744656641084,-2721.36,0.00017999,2]
[358030430,1744656641094,-2721.36,0.00017999,2]
[358030432,1744656641104,-2721.36,0.00017999,2]
[358030434,1744656641115,-2721.36,0.00017999,2]
[358030436,1744656641125,-2721.36,0.00017999,2]
[358030438,1744656641134,-2721.36,0.00017999,2]
[358030440,1744656641144,-2721.36,0.00017999,2]
[358030442,1744656641153,-2721.36,0.00017999,2]
[358030444,1744656641163,-2721.36,0.00017999,2]
[358030446,1744656641173,-2721.36,0.00017999,2]
[358030448,1744656641182,-2721.36,0.00017999,2]
[358030450,1744656641192,-2721.36,0.00017999,2]
[358030452,1744656641201,-2721.36,0.00017999,2]
[358030454,1744656641211,-2721.36,0.00017999,2]
[358030456,1744656641221,-2721.36,0.00017999,2]
[358030458,1744656641230,-1382.99,0.00017999,2]
[358030460,1744656641240,-2721.36,0.00017999,2]
[358030462,1744656641249,-1382.99,0.00017999,2]
[358030464,1744656641258,-2721.36,0.00017999,2]
[358030466,1744656641267,-1382.99,0.00017999,2]
[358030468,1744656641277,-2721.36,0.00017999,2]
[358030470,1744656641286,-1382.99,0.00017999,2]
[358030472,1744656641296,-2721.36,0.00017999,2]
[358030474,1744656641305,-1382.99,0.00017999,2]
[358030476,1744656641314,-2721.36,0.00017999,2]
[358030478,1744656641324,-2721.36,0.00017999,2]
[358030480,1744656641333,-1382.99,0.00017999,2]
[358030482,1744656641343,-1382.99,0.00017999,2]
[358030484,1744656641353,-2721.3943,0.00017999,2]
[358030486,1744656641362,-1382.99,0.00017999,2]
[358030488,1744656641371,-1382.99,0.00017999,2]
[358030489,1744656641381,-1382.99,0.00017999,2]
[358030492,1744656641391,-1382.99,0.00017999,2]
[358030493,1744656641401,-1382.99,0.00017999,2]
[358030495,1744656641410,-1382.99,0.00017999,2]
[358030498,1744656641420,-1382.99,0.00017999,2]
[358030500,1744656641431,-1382.99,0.00017999,2]
[358030502,1744656641441,-1382.99,0.00017999,2]
[358030504,1744656641452,-1382.99,0.00017999,2]
[358030506,1744656641461,-1382.99,0.00017999,2]
[358030508,1744656641471,-1382.99,0.00017999,2]
[358030510,1744656641480,-1382.99,0.00017999,2]
[358030512,1744656641489,-1382.99,0.00017999,2]
[358030514,1744656641499,-1383.05044426,0.00017999,2]
[358030516,1744656641508,-1000.0,0.00017999,2]
[358030517,1744656641518,-500.0,0.00017999,2]
[358030519,1744656641528,-500.0,0.00017999,2]
[358030521,1744656641538,-500.0,0.00017999,2]
[358030524,1744656641548,-500.0,0.00017999,2]
[358030526,1744656641557,-246.69499875,0.00017999,2]
[358030528,1744656641567,-150.0,0.00017999,2]
[358030530,1744656641577,-566.72,0.00017999,2]
[358030532,1744656641586,-566.72,0.00017999,2]
[358030534,1744656641595,-566.72,0.00017999,2]
[358030536,1744656641604,-566.72,0.00017999,2]
[358030538,1744656641613,-566.72,0.00017999,2]
[358030540,1744656641622,-566.72,0.00017999,2]
[358030542,1744656641633,-566.72,0.00017999,2]
[358030544,1744656641642,-566.72,0.00017999,2]
[358030546,1744656641652,-566.72,0.00017999,2]
[358030548,1744656641661,-566.72,0.00017999,2]
[358030550,1744656641674,-566.72,0.00017999,2]
[358030552,1744656641683,-566.72,0.00017999,2]
[358030554,1744656641693,-566.72,0.00017999,2]
[358030556,1744656641702,-566.72,0.00017999,2]
[358030558,1744656641715,-566.72,0.00017999,2]
[358030560,1744656641726,-566.72,0.00017999,2]
[358030562,1744656641737,-566.72,0.00017999,2]
[358030564,1744656641747,-566.72,0.00017999,2]
[358030566,1744656641757,-566.72,0.00017999,2]
[358030568,1744656641767,-566.72,0.00017999,2]
[358030570,1744656641777,-566.72,0.00017999,2]
[358030572,1744656641787,-566.9557689,0.00017999,2]
[358030574,1744656641797,-500.0,0.00017999,2]
[358030576,1744656641807,-500.0,0.00017999,2]
[358030578,1744656641816,-500.0,0.00017999,2]
[358030580,1744656641826,-500.0,0.00017999,2]
[358030582,1744656641835,-339476.66432016,0.00018,2]
[358030584,1744656641845,-167.56669739,0.00018,2]
[358030586,1744656641854,-754757.76005357,0.00018,2]
[358030589,1744656641872,-335786.44730617,0.00018,2]
[358030591,1744656641883,-23844.30168802,0.00018,2]
[358030593,1744656641895,-5707.45867025,0.00018,2]
[358030595,1744656641906,-340372.99471001,0.00018,2]
[358030597,1744656641919,-1528437.18155891,0.00018,2]
[358030614,1744656642172,-43550.5608447,0.00018,2]
[358030615,1744656642223,-1044259.61246808,0.00018,2]
[358030616,1744656642234,-739.73156355,0.00018,2]
[358030617,1744656642245,-396809.82144439,0.00018,2]
[358030618,1744656642256,-2427.13296983,0.00018,2]
[358030619,1744656642267,-1445.703458,0.00018,2]
[358030620,1744656642279,-709.22301029,0.00018,2]
[358030622,1744656642290,-760.0000001,0.00018,2]
[358030624,1744656642301,-446.29178482,0.00018,2]
[358030626,1744656642312,-491.82,0.00018,2]
[358030628,1744656642323,-3278.5,0.00018,2]
[358030751,1744656643680,-500.0,0.00017996,2]
[358030753,1744656643689,-310.0,0.00017999,2]
[358030866,1744656645236,-822.6463164,0.00017999,2]
[358030867,1744656645248,-286.3536836,0.00017999,2]
[358030868,1744656645259,-21778.26389839,0.00018,2]
[358030876,1744656646274,-849.83346939,0.00018,2]
[358030927,1744656718190,760.77,0.00015864,2]
[358030928,1744656720945,350.0,0.00019404,12]
[358030929,1744656832875,675.42,0.00017407,2]
[358030930,1744656902279,469.03,0.00017333,2]
[358030931,1744656970136,164.68,0.00017333,2]
[358030932,1744657215565,150.76871871,0.00017315,2]
[358030933,1744657215589,849.23128129,0.00017315,2]
[358030934,1744657313990,9150.76871871,0.00017369,2]
[358030935,1744657314028,10000.0,0.00017369,2]
[358030936,1744657314053,4749.23128129,0.00017369,2]
[358030937,1744657443991,200.0,0.00017167,2]
[358030938,1744657452901,150.0,0.00017167,2]
[358030939,1744657508344,3644.15962,7.945e-05,2]
[358030940,1744657750243,-238.7574,0.0001764,2]
[358030941,1744657790885,300.0,0.00017145,2]
[358030947,1744657831435,-902.17064819,0.0001764,2]
[358030948,1744657831446,-997.82934181,0.0001764,2]
[358030949,1744657831458,-16.59702608,0.0001764,2]
[358030950,1744657831468,-401.98179846,0.00017699,2]
[358030951,1744657831478,-337.86106885,0.00017794,2]
[358030952,1744657831489,-225.2289244,0.00017794,2]
[358030953,1744657831499,-189.82897939,0.00017794,2]
[358030954,1744657831508,-189.82897939,0.00017886,2]
[358030955,1744657831518,-736.31206913,0.00017894,2]
[358030956,1744657831527,-300.0,0.00017897,2]
[358030957,1744657831537,-550.0,0.00017897,2]
[358030958,1744657831546,-58.3290896,0.00017898,2]
[358030959,1744657831559,-1988.6709104,0.00017898,2]
[358030960,1744657831568,-791.0,0.00017898,2]
[358030961,1744657831578,-907.0,0.00017898,2]
[358030962,1744657831587,-545.0,0.00017898,2]
[358030963,1744657831597,-1279.0,0.00017898,2]
[358030964,1744657831606,-1438.0,0.00017898,2]
[358030965,1744657831616,-575.0,0.00017898,2]
[358030966,1744657831625,-4148.0,0.00017898,2]
[358030967,1744657831635,-578.05390483,0.000179,2]
[358030968,1744657831645,-160.54990921,0.000179,2]
[358030970,1744657831654,-736.31206913,0.000179,2]
[358030972,1744657831664,-2940.32225804,0.000179,2]
[358031016,1744657837489,-1428.80168349,0.000179,2]
[358031017,1744657837499,-865.0,0.00017931,2]
[358031018,1744657837509,-3964.0,0.00017931,2]
[358031019,1744657837519,-152.0,0.00017931,2]
[358031020,1744657837528,-1123.0,0.00017931,2]
[358031021,1744657837538,-184.28809555,0.00017967,2]
[358031022,1744657837548,-500.0,0.00017973,2]
[358031023,1744657837557,-500.0,0.00017973,2]
[358031024,1744657837567,-1322.11,0.00017985,2]
[358031025,1744657837578,-1287.6026954,0.00017986,2]
[358031026,1744657837587,-316.4688321,0.00017986,2]
[358031027,1744657837597,-4996.32869346,0.00017986,2]
[358031028,1744657837608,-757.415558,0.00017986,2]
[358031029,1744657837755,-552.6000004,0.00017986,2]
[358031030,1744657837809,-39575.09095684,0.00017986,2]
[358031031,1744657837820,-1107.4809691,0.00017986,2]
[358031032,1744657837830,-500.0,0.00017993,2]
[358031033,1744657837840,-500.0,0.00017993,2]
[358031034,1744657837850,-500.0,0.00017996,2]
[358031035,1744657837859,-151.224682,0.00017996,2]
[358031036,1744657837870,-500.0,0.00017998,2]
[358031037,1744657837880,-208.05835475,0.00017998,2]
[358031038,1744657837890,-56648.65,0.00017999,2]
[358031039,1744657837901,-1000.0,0.00017999,2]
[358031040,1744657837911,-519.5,0.00017999,2]
[358031042,1744657837921,-519.5,0.00017999,2]
[358031044,1744657837931,-519.5,0.00017999,2]
[358031045,1744657837940,-519.5,0.00017999,2]
[358031047,1744657837950,-519.5,0.00017999,2]
[358031049,1744657837960,-519.5,0.00017999,2]
[358031051,1744657837970,-519.5,0.00017999,2]
[358031053,1744657837979,-519.5,0.00017999,2]
[358031055,1744657837989,-519.5,0.00017999,2]
[358031057,1744657837998,-519.5,0.00017999,2]
[358031059,1744657838009,-519.5,0.00017999,2]
[358031061,1744657838018,-519.5,0.00017999,2]
[358031062,1744657838027,-519.5,0.00017999,2]
[358031064,1744657838038,-500.0,0.00017999,2]
[358031066,1744657838047,-251.98568552,0.00017999,2]
[358031068,1744657838056,-500.0,0.00017999,2]
[358031069,1744657838066,-500.0,0.00017999,2]
[358031071,1744657838074,-550.07,0.00017999,2]
[358031073,1744657838084,-550.07,0.00017999,2]
[358031075,1744657838094,-550.07,0.00017999,2]
[358031077,1744657838103,-550.07,0.00017999,2]
[358031079,1744657838114,-550.07,0.00017999,2]
[358031081,1744657838123,-550.07,0.00017999,2]
[358031083,1744657838132,-550.07,0.00017999,2]
[358031084,1744657838141,-550.07,0.00017999,2]
[358031086,1744657838150,-550.07,0.00017999,2]
[358031088,1744657838160,-550.07,0.00017999,2]
[358031090,1744657838169,-550.07,0.00017999,2]
[358031092,1744657838179,-550.07,0.00017999,2]
[358031094,1744657838189,-550.07,0.00017999,2]
[358031096,1744657838198,-237.69,0.00017999,2]
[358031098,1744657838208,-500.0,0.00017999,2]
[358031100,1744657838217,-500.0,0.00017999,2]
[358031101,1744657838227,-500.0,0.00017999,2]
[358031103,1744657838236,-500.0,0.00017999,2]
[358031105,1744657838245,-500.0,0.00017999,2]
[358031107,1744657838254,-500.0,0.00017999,2]
[358031109,1744657838263,-500.0,0.00017999,2]
[358031110,1744657838272,-500.0,0.00017999,2]
[358031112,1744657838282,-500.0,0.00017999,2]
[358031114,1744657838291,-500.0,0.00017999,2]
[358031116,1744657838300,-500.0,0.00017999,2]
[358031118,1744657838310,-500.0,0.00017999,2]
[358031119,1744657838319,-500.0,0.00017999,2]
[358031121,1744657838332,-736.23,0.00017999,2]
[358031123,1744657838341,-736.23,0.00017999,2]
[358031124,1744657838351,-736.23,0.00017999,2]
[358031126,1744657838360,-736.23,0.00017999,2]
[358031128,1744657838369,-736.23,0.00017999,2]
[358031129,1744657838378,-736.23,0.00017999,2]
[358031130,1744657838388,-736.23,0.00017999,2]
[358031131,1744657838402,-736.23,0.00017999,2]
[358031132,1744657838412,-736.23,0.00017999,2]
[358031133,1744657838421,-500.0,0.00017999,2]
[358031134,1744657838430,-736.23,0.00017999,2]
[358031135,1744657838441,-736.23,0.00017999,2]
[358031136,1744657838451,-736.23,0.00017999,2]
[358031137,1744657838460,-736.23,0.00017999,2]
[358031138,1744657838471,-2494.58,0.00017999,2]
[358031139,1744657838481,-2494.58,0.00017999,2]
[358031140,1744657838490,-2494.58,0.00017999,2]
[358031141,1744657838500,-2494.58,0.00017999,2]
[358031142,1744657838510,-2494.58,0.00017999,2]
[358031143,1744657838519,-2494.58,0.00017999,2]
[358031144,1744657838529,-2494.58,0.00017999,2]
[358031145,1744657838538,-2494.58,0.00017999,2]
[358031146,1744657838548,-2494.58,0.00017999,2]
[358031147,1744657838559,-2494.58,0.00017999,2]
[358031148,1744657838569,-2494.58,0.00017999,2]
[358031149,1744657838579,-2494.58,0.00017999,2]
[358031150,1744657838589,-2494.58,0.00017999,2]
[358031151,1744657838599,-928.79,0.00017999,2]
[358031152,1744657838609,-928.79,0.00017999,2]
[358031153,1744657838620,-928.79,0.00017999,2]
[358031154,1744657838630,-928.79,0.00017999,2]
[358031155,1744657838639,-928.79,0.00017999,2]
[358031156,1744657838649,-928.79,0.00017999,2]
[358031157,1744657838660,-928.79,0.00017999,2]
[358031158,1744657838670,-928.79,0.00017999,2]
[358031159,1744657838680,-500.0,0.00017999,2]
[358031160,1744657838690,-928.79,0.00017999,2]
[358031161,1744657838701,-500.0,0.00017999,2]
[358031162,1744657838712,-928.79,0.00017999,2]
[358031163,1744657838722,-928.79,0.00017999,2]
[358031164,1744657838732,-928.79,0.00017999,2]
[358031165,1744657838741,-500.0,0.00017999,2]
[358031166,1744657838751,-928.79,0.00017999,2]
[358031167,1744657838762,-500.0,0.00017999,2]
[358031168,1744657838773,-246.69499875,0.00017999,2]
[358031169,1744657838782,-150.0,0.00017999,2]
[358031170,1744657838792,-500.0,0.00017999,2]
[358031171,1744657838802,-221.12,0.00017999,2]
[358031172,1744657838811,-500.0,0.00017999,2]
[358031173,1744657838822,-500.0,0.00017999,2]
[358031174,1744657838832,-500.0,0.00017999,2]
[358031175,1744657838843,-500.0,0.00017999,2]
[358031176,1744657838854,-183.47144648,0.00017999,2]
[358031177,1744657838865,-200.59008569,0.00017999,2]
[358031178,1744657838875,-1279.0,0.00018,2]
[358031179,1744657838885,-785191.73041144,0.00018,2]
[358031180,1744657838904,-280521.6968711,0.00018,2]
[358031181,1744657838921,-335786.44730617,0.00018,2]
[358031183,1744657839700,-799056.12639375,0.00018,2]
[358031184,1744657839711,-150.0,0.00018,2]
[358031185,1744657839721,-566.90745885,0.00018,2]
[358031186,1744657839731,-150.0,0.00018,2]
[358031187,1744657839740,-150.0,0.00018,2]
[358031188,1744657839751,-150.0,0.00018,2]
[358031189,1744657839760,-658.69828267,0.00018,2]
[358031190,1744657839770,-6164.71551656,0.00018,2]
[358031191,1744657839779,-756.4137361,0.00018,2]
[358031192,1744657839788,-634006.30408809,0.00018,2]
[358031193,1744657839800,-1155.41372612,0.00018,2]
[358031194,1744657839812,-521.77850012,0.00018,2]
[358031195,1744657839824,-2065.10645211,0.00018,2]
[358031196,1744657839836,-9200.0,0.00018,2]
[358031197,1744657839859,-3071.32839809,0.00018,2]
[358031198,1744657839970,-16006.37,0.00018,2]
[358031201,1744657842480,-1716.05848814,0.00018,2]
[358031202,1744657842537,-34992.34936365,0.00018,2]
[358031203,1744657842550,-315.85269573,0.00018,2]
[358031204,1744657842563,-16522.14655332,0.00018,2]
[358031218,1744657844015,-873.04153788,0.00018,2]
[358031219,1744657844027,-4110.1640625,0.00018,2]
[358031265,1744657845568,-1420.22017794,0.00018,2]
[358031267,1744657845580,-2155.4,0.00018,2]
[358031271,1744657845623,-1674.13251436,0.00018,2]
[358031283,1744657845782,-657.27927126,0.00018,2]
[358031285,1744657845796,-630.820596,0.00018,2]
[358031302,1744657939067,840.69,0.00016231,2]
[358031303,1744658281968,350.0,0.00019279,12]
[358031304,1744658339517,115.91909871,0.00014491,2]
[358031305,1744658339537,45.90090129,0.00014491,2]
[358031306,1744658345558,9954.09909871,0.00017414,2]
[358031307,1744658345580,10000.0,0.00017414,2]
[358031308,1744658345602,3945.90090129,0.00017414,2]
[358031310,1744658369397,1000.0,0.00019,3]
[358031311,1744658370616,1000.0,0.00019,3]
[358031312,1744658371045,1000.0,0.00019,3]
[358031313,1744658461560,609.0,0.00019,3]
[358031314,1744658467326,1000.0,0.00019,3]
[358031315,1744658467618,200.0,0.00017405,7]
[358031316,1744658576479,267.0,0.000154,5]
[358031317,1744658755353,4955.42306302,6.94e-05,2]
[358031318,1744658808188,299.78,0.00017173,2]
[358031319,1744658826788,278.5955,0.000153,2]
[358031320,1744658830437,2640.86638287,0.00015,2]
[358031321,1744658834209,3852.09546618,0.00015,2]
[358031322,1744658894352,1171.81,0.00016971,2]
[358031323,1744658899554,162.14,0.00017438,2]
[358031324,1744658918257,3567.86360579,0.000149,2]
[358031325,1744658927747,23214.04458537,0.00013368,2]
[358031326,1744658952000,252.81,0.00016965,2]
[358031331,1744658973192,-157.34,0.00017526,2]
[358031332,1744658973216,-79.7906,0.00017689,2]
[358031336,1744659017256,1078.17,0.00015034,2]
[358031337,1744659017462,1078.17,0.00017298,2]
[358031353,1744659031656,-86.9994,0.00017689,2]
[358031354,1744659031666,-300.0,0.00017699,2]
[358031355,1744659031675,-20007.24709978,0.000177,2]
[358031356,1744659031684,-436.64053329,0.00017702,2]
[358031357,1744659031694,-10003.61,0.00017732,2]
[358031358,1744659031704,-1509.4482,0.000178,2]
[358031359,1744659031713,-5706.09575233,0.00017886,2]
[358031360,1744659031723,-1397.03330673,0.00017887,2]
[358031361,1744659031732,-344.9839,0.00017887,2]
[358031362,1744659031741,-5706.09575226,0.00017888,2]
[358031363,1744659031752,-3964.0,0.00017896,2]
[358031364,1744659031761,-550.0,0.00017899,2]
[358031365,1744659031771,-1397.03330673,0.000179,2]
[358031366,1744659031783,-5083.97813103,0.000179,2]
[358031367,1744659031794,-1000.0,0.000179,2]
[358031368,1744659031804,-178.41066108,0.000179,2]
[358031369,1744659031813,-768.066401,0.000179,2]
[358031370,1744659031822,-5806.08845921,0.000179,2]
[358031371,1744659031834,-166.50981856,0.000179,2]
[358031372,1744659031843,-173.9008924,0.000179,2]
[358031373,1744659031854,-5083.97813096,0.00017903,2]
[358031374,1744659031865,-5083.97813096,0.00017907,2]
[358031376,1744659031875,-5083.97813096,0.0001791,2]
[358031378,1744659031885,-5083.97813096,0.00017914,2]
[358031380,1744659031895,-5083.97813096,0.00017917,2]
[358031382,1744659031904,-5083.97813096,0.00017921,2]
[358031384,1744659031914,-5083.97813096,0.00017924,2]
[358031386,1744659031924,-5083.97813096,0.00017928,2]
[358031388,1744659031933,-5083.97813096,0.00017931,2]
[358031389,1744659031943,-250.0,0.00017942,2]
[358031391,1744659031953,-1438.0,0.00017967,2]
[358031392,1744659031962,-1279.0,0.00017967,2]
[358031393,1744659031972,-545.0,0.00017967,2]
[358031394,1744659031983,-907.0,0.00017967,2]
[358031395,1744659031993,-575.0,0.00017967,2]
[358031396,1744659032003,-4148.0,0.00017967,2]
[358031397,1744659032013,-1123.0,0.00017967,2]
[358031398,1744659032023,-2047.0,0.00017967,2]
[358031399,1744659032033,-1287.0,0.00017967,2]
[358031401,1744659032043,-1328.0,0.00017967,2]
[358031403,1744659032052,-3125.0,0.00017973,2]
[358031405,1744659032062,-153.97603012,0.00017973,2]
[358031407,1744659032072,-506.41551795,0.00017973,2]
[358031409,1744659032084,-500.0,0.00017973,2]
[358031412,1744659032103,-500.0,0.00017973,2]
[358031414,1744659032112,-500.0,0.00017973,2]
[358031416,1744659032122,-500.0,0.00017973,2]
[358031418,1744659032132,-504.05263074,0.00017973,2]
[358031420,1744659032141,-500.0,0.00017973,2]
[358031421,1744659032151,-500.0,0.00017973,2]
[358031423,1744659032161,-500.0,0.00017973,2]
[358031425,1744659032171,-1057.688,0.00017973,2]
[358031426,1744659032180,-2108.01569434,0.00017977,2]
[358031427,1744659032190,-2997.5825885,0.00017986,2]
[358031428,1744659032201,-500.0,0.00017986,2]
[358031429,1744659032211,-500.0,0.00017986,2]
[358031430,1744659032221,-2000.0,0.00017986,2]
[358031431,1744659032231,-500.0,0.00017986,2]
[358031432,1744659032240,-500.0,0.00017986,2]
[358031433,1744659032249,-500.0,0.00017986,2]
[358031434,1744659032259,-500.0,0.00017986,2]
[358031435,1744659032270,-500.0,0.00017986,2]
[358031436,1744659032279,-500.0,0.00017986,2]
[358031437,1744659032289,-300.0,0.00017986,2]
[358031438,1744659032300,-637.23,0.00017986,2]
[358031439,1744659032310,-500.0,0.00017986,2]
[358031440,1744659032319,-500.0,0.00017986,2]
[358031441,1744659032329,-500.0,0.00017986,2]
[358031442,1744659032340,-500.0,0.00017986,2]
[358031443,1744659032350,-500.0,0.00017986,2]